bitfinex-derivatives/quotes_ETHF0:USTF0_20230105
["timestamp","ask_amount","ask_price","bid_price","bid_amount"]
[1672940907884,2.40043932,1247.6,1247.5,9.53173811]
[1672940909247,2.40043932,1247.6,1247.5,6.32393811]
[1672940909979,2.40043932,1247.6,1247.5,9.53173811]
[1672940910501,2.40043932,1247.6,1247.5,18.14187823]
[1672940910712,2.40043932,1247.7,1247.5,15.1377259]
[1672940910923,2.40043932,1247.7,1247.6,6.3236578]
[1672940911128,2.40043932,1247.7,1247.6,9.32708059]
[1672940911450,2.40043932,1247.7,1247.6,6.92434869]
[1672940912712,2.99769927,1247.8,1247.7,2.5]
[1672940912713,5.39813859,1247.8,1247.7,2.5]
[1672940912916,5.39813859,1247.8,1247.7,9.91110927]
[1672940913756,2.40043932,1247.8,1247.7,9.91110927]
[1672940913968,2.40043932,1247.8,1247.7,8.10969101]
[1672940914293,2.40043932,1247.8,1247.7,9.91109977]
[1672940914495,2.40043932,1247.8,1247.7,7.50920876]
[1672940914812,2.40043932,1247.8,1247.7,9.91109977]
[1672940915022,2.40043932,1247.8,1247.7,7.50920876]
[1672940916176,2.40043932,1247.8,1247.7,9.91109977]
[1672940916590,2.40043932,1247.8,1247.7,7.50920876]
[1672940918797,1.79743152,1247.8,1247.7,20.54260279]
[1672940920060,1.79743152,1247.9,1247.7,18.14071178]
[1672940920268,1.79743152,1247.9,1247.8,3.82065754]
[1672940920695,1.79743152,1247.9,1247.8,4.19931635]
[1672940921109,1.79743152,1247.9,1247.8,1.7991478]
[1672940922789,1.79743152,1247.9,1247.8,5.0069478]
[1672940924159,1.79743152,1247.9,1247.8,6.20613613]
[1672940925526,1.79743152,1247.9,1247.8,2.99833613]
[1672940926051,1.79743152,1247.9,1247.8,6.20613613]
[1672940929212,1.79743152,1247.9,1247.8,2.99833613]
[1672940929416,1.79743152,1247.9,1247.8,6.20613613]
[1672940932678,1.79743152,1247.9,1247.8,4.40698833]
[1672940933624,2.40043932,1248.0,1247.8,4.40698833]
[1672940934044,2.40043932,1248.0,1247.9,2.5]
[1672940934360,2.5,1248.1,1247.9,2.5]
[1672940937411,2.5,1248.1,1247.9,2.49280213]
[1672940937624,5.7078,1248.1,1247.9,2.49280213]
[1672940937940,2.5,1248.1,1247.9,2.49280213]
[1672940938142,5.7078,1248.1,1247.9,2.49280213]
[1672940941196,2.99311373,1248.0,1247.9,2.49280213]
[1672940948552,2.99311373,1248.0,1247.9,3.69199046]
[1672940948759,6.10323972,1248.1,1247.9,3.69199046]
[1672940949295,6.10323972,1248.1,1247.9,2.49280213]
[1672940949505,6.10323972,1248.1,1247.9,3.69199046]
[1672940950870,10.30212267,1248.1,1247.9,3.69199046]
[1672940951394,3.60323972,1248.0,1247.9,1.19918833]
[1672940951813,6.81103972,1248.0,1247.9,1.19918833]
[1672940952023,2.5,1247.9,1247.8,2.99833613]
[1672940952441,5.49788218,1247.9,1247.8,2.99833613]
[1672940952652,5.49788218,1247.9,1247.8,1.7991478]
[1672940952868,5.49788218,1247.9,1247.8,3.00050108]
[1672940953815,2.5,1247.9,1247.8,3.00050108]
[1672940954442,6.81103972,1248.0,1247.8,3.00050108]
[1672940954869,2.99821672,1247.9,1247.8,3.00050108]
[1672940955182,5.49821672,1247.9,1247.8,3.00050108]
[1672940955708,2.99821672,1247.9,1247.8,1.7991478]
[1672940958444,2.99821672,1247.9,1247.8,2.40016855]
[1672940959490,2.99821672,1247.9,1247.8,5.60796855]
[1672940960236,2.99821672,1247.9,1247.8,7.41025879]
[1672940960449,2.99821672,1247.9,1247.8,5.60796855]
[1672940964126,2.99821672,1247.9,1247.8,2.40016855]
[1672940965699,2.99821672,1247.9,1247.8,3.82064828]
[1672940969166,2.99821672,1247.9,1247.8,7.02844828]
[1672940970852,2.99821672,1247.9,1247.8,3.82064828]
[1672940971051,2.99821672,1247.9,1247.8,7.02844828]
[1672940974955,2.99821672,1247.9,1247.8,3.82064828]
[1672940975158,2.99821672,1247.9,1247.8,7.02844828]
[1672940976531,2.99821672,1247.9,1247.8,3.82064828]
[1672940976741,2.99821672,1247.9,1247.8,7.02844828]
[1672940977470,2.99821672,1247.9,1247.8,5.60796855]
[1672940977996,2.99821672,1247.9,1247.8,2.40016855]
[1672940983576,2.99821672,1247.9,1247.8,3.82064819]
[1672940984840,2.99821672,1247.9,1247.8,7.02844819]
[1672940985156,2.99821672,1247.9,1247.8,5.60796855]
[1672940986521,2.99821672,1247.9,1247.8,2.40016855]
[1672940987678,2.99821672,1247.9,1247.8,4.20299683]
[1672940989150,3.60323972,1248.0,1247.8,1.20198017]
[1672940989359,3.60323972,1247.9,1247.8,1.20198017]
[1672940989671,6.10323972,1247.9,1247.8,1.20198017]
[1672940990508,2.5,1247.9,1247.8,4.30282828]
[1672940990722,5.49975631,1247.9,1247.8,4.30282828]
[1672940991768,2.5,1247.9,1247.8,4.30282828]
[1672940992078,5.49978673,1247.9,1247.8,6.70299683]
[1672940992828,2.99978673,1247.9,1247.8,6.70299683]
[1672940993035,2.99978673,1247.9,1247.8,6.70300404]
[1672940993245,2.99978673,1247.9,1247.8,4.90016855]
[1672940993456,2.99978673,1247.9,1247.8,6.70300232]
[1672940994609,2.99978673,1247.9,1247.8,4.90016855]
[1672940996298,2.99978673,1247.9,1247.8,6.70316426]
[1672940996512,2.99446743,1247.9,1247.8,4.90016855]
[1672940996826,2.99446743,1247.9,1247.8,6.70316638]
[1672940997038,2.99446743,1247.9,1247.8,4.90016855]
[1672940997457,2.99446743,1247.9,1247.8,8.10796855]
[1672940997779,5.49446743,1247.9,1247.8,9.91102343]
[1672940998821,5.49446743,1247.9,1247.8,6.70322343]
[1672940999341,5.49446743,1247.9,1247.8,4.90016855]
[1672941000711,5.49446743,1247.9,1247.8,2.40016855]
[1672941000918,5.49446743,1247.9,1247.8,4.90016855]
[1672941001236,5.49446743,1247.9,1247.8,4.20318061]
[1672941001764,5.49446743,1247.9,1247.8,6.70318061]
[1672941002178,5.49446743,1247.9,1247.8,4.20318061]
[1672941002395,2.5,1247.9,1247.8,4.20318061]
[1672941002916,2.5,1247.9,1247.8,6.70318061]
[1672941005030,3.60323972,1248.0,1247.8,6.70318061]
[1672941005235,3.60323972,1248.0,1247.9,1.20197248]
[1672941014476,3.60323972,1248.0,1247.9,3.00498454]
[1672941014892,3.60323972,1248.0,1247.9,1.20197248]
[1672941016577,3.60323972,1248.0,1247.9,3.00498454]
[1672941017624,3.60323972,1248.0,1247.9,1.20197248]
[1672941018360,3.60323972,1248.0,1247.9,3.00498454]
[1672941025936,13.50992267,1248.1,1247.9,1.80301206]
[1672941026150,13.50992267,1248.1,1248.0,1.20215375]
[1672941026348,13.50992267,1248.1,1248.0,2.5]
[1672941026988,9.90668295,1248.1,1248.0,2.5]
[1672941027302,11.00702771,1248.1,1248.0,3.70215375]
[1672941027516,3.60034476,1248.1,1248.0,5.50516581]
[1672941027721,7.79922771,1248.2,1248.0,5.50497516]
[1672941027933,10.29922771,1248.2,1248.0,5.50497516]
[1672941028347,6.10034476,1248.1,1248.0,5.50497516]
[1672941028558,2.5,1248.1,1248.0,3.7019631]
[1672941029617,6.10034476,1248.1,1248.0,3.7019631]
[1672941031192,2.5,1248.1,1248.0,3.7019631]
[1672941031410,6.10034476,1248.1,1248.0,3.7019631]
[1672941032771,2.5,1248.1,1248.0,3.7019631]
[1672941034037,6.10034476,1248.1,1248.0,3.7019631]
[1672941035820,6.10034476,1248.1,1247.9,4.50497516]
[1672941036029,6.10034476,1248.1,1247.9,3.00497516]
[1672941040343,6.10034476,1248.1,1247.9,1.2019631]
[1672941040866,9.30814476,1248.1,1247.9,1.2019631]
[1672941041605,9.30814476,1248.1,1247.9,3.00497516]
[1672941042230,3.60034476,1248.1,1248.0,3.7019631]
[1672941042548,2.5,1248.1,1248.0,3.7019631]
[1672941042762,6.10034476,1248.1,1248.0,3.7019631]
[1672941042975,6.10034476,1248.1,1247.9,5.50497516]
[1672941043185,2.5,1248.0,1247.9,5.50497516]
[1672941046020,5.49854276,1248.0,1247.9,5.50497516]
[1672941046232,2.99854276,1248.0,1247.9,5.50497516]
[1672941046438,2.99854276,1248.0,1247.9,4.30301206]
[1672941047067,2.99854276,1248.0,1247.9,5.50418047]
[1672941047701,2.99854276,1248.0,1247.9,5.50417516]
[1672941047904,2.99854276,1248.0,1247.9,4.30301206]
[1672941048117,2.99854276,1248.0,1247.9,5.50418112]
[1672941048643,2.99854276,1248.0,1247.9,4.30301206]
[1672941052220,2.99854276,1248.0,1247.9,5.50428611]
[1672941052744,2.99854276,1248.0,1247.9,3.00438191]
[1672941052955,5.49873117,1248.0,1247.9,3.00438191]
[1672941053584,2.5,1248.0,1247.9,3.00438191]
[1672941053796,5.49864526,1248.0,1247.9,3.00438191]
[1672941054959,5.49864526,1248.0,1247.9,1.80301206]
[1672941055482,2.99867824,1248.0,1247.9,1.80301206]
[1672941055684,5.49867824,1248.0,1247.9,1.80301206]
[1672941056108,2.5,1248.0,1247.9,1.80301206]
[1672941056320,5.49890606,1248.0,1247.9,1.80301206]
[1672941056954,5.49890606,1248.0,1247.9,4.20318061]
[1672941057158,2.99890606,1248.0,1247.9,4.20318061]
[1672941060210,2.99890606,1248.0,1247.9,4.20233246]
[1672941061047,2.99890606,1248.0,1247.9,2.40016855]
[1672941061256,2.99890606,1248.0,1247.9,4.20244115]
[1672941061468,2.99890606,1248.0,1247.9,2.40016855]
[1672941062412,2.99890606,1248.0,1247.9,4.20243522]
[1672941062620,2.99890606,1248.0,1247.9,4.20242676]
[1672941063684,2.99890606,1248.0,1247.9,1.80225821]
[1672941064726,6.10034476,1248.1,1247.9,3.00401926]
[1672941064940,10.29922771,1248.1,1247.9,3.00401926]
[1672941065779,3.60034476,1248.0,1247.9,3.00401926]
[1672941065990,10.29922771,1248.1,1247.9,3.00401926]
[1672941066726,13.50702771,1248.1,1247.9,3.00401926]
[1672941067249,3.60034476,1248.0,1247.9,1.20176105]
[1672941071035,9.30814476,1248.1,1247.9,1.20176105]
[1672941071245,13.50702771,1248.1,1247.9,1.20176105]
[1672941071455,13.50702771,1248.1,1247.9,3.00401926]
[1672941071671,9.30814476,1248.1,1247.9,3.00401926]
[1672941073033,13.50702771,1248.1,1247.9,1.20176105]
[1672941073351,3.60034476,1248.0,1247.9,1.20176105]
[1672941073552,13.50702771,1248.1,1247.9,1.20176105]
[1672941074709,3.60034476,1248.0,1247.9,1.20176105]
[1672941075134,6.80814476,1248.0,1247.9,1.20176105]
[1672941077129,6.80814476,1248.0,1247.8,1.19680624]
[1672941077334,3.60034476,1247.9,1247.8,1.19680624]
[1672941077552,3.60034476,1247.9,1247.7,1.80225821]
[1672941077760,2.99882759,1247.8,1247.7,1.80225821]
[1672941077967,5.49882759,1247.8,1247.7,1.80225821]
[1672941078177,2.5,1247.8,1247.7,1.80225821]
[1672941078380,5.4986982,1247.8,1247.7,1.80225821]
[1672941079437,5.7078,1247.8,1247.6,6.70242676]
[1672941079648,5.39507864,1247.7,1247.6,4.20242676]
[1672941079863,5.39507864,1247.7,1247.6,6.70242676]
[1672941080178,5.39507864,1247.7,1247.6,4.20242676]
[1672941080384,5.39507864,1247.7,1247.6,6.70242676]
[1672941080600,2.39781273,1247.7,1247.6,4.30225821]
[1672941081015,2.39781273,1247.7,1247.6,1.80225821]
[1672941081549,2.39781273,1247.7,1247.6,4.30225821]
[1672941082277,2.39781273,1247.7,1247.6,1.80225821]
[1672941084278,2.39781273,1247.7,1247.6,4.30225821]
[1672941084591,2.39781273,1247.7,1247.6,4.90016855]
[1672941084592,1.79715441,1247.7,1247.6,4.90016855]
[1672941085005,1.79715441,1247.7,1247.6,6.3207822]
[1672941089115,1.79216045,1247.7,1247.6,6.3207822]
[1672941089852,1.79216045,1247.7,1247.6,9.5285822]
[1672941091313,1.79216045,1247.7,1247.6,9.90813465]
[1672941091525,4.18997318,1247.7,1247.6,7.5079661]
[1672941091734,4.18997318,1247.7,1247.6,8.10796855]
[1672941091735,1.79216045,1247.7,1247.6,8.10796855]
[1672941092055,1.79216045,1247.7,1247.6,5.60796855]
[1672941092271,2.39781273,1247.7,1247.6,1.80016015]
[1672941092478,5.49726591,1247.7,1247.5,1.80016015]
[1672941092791,4.89413802,1247.6,1247.4,9.9081287]
[1672941092993,4.89413802,1247.6,1247.4,7.50796015]
[1672941093209,1.5,1247.5,1247.4,9.9081287]
[1672941093420,1.5,1247.5,1247.4,8.10796855]
[1672941093631,1.5,1247.5,1247.4,7.50742846]
[1672941094361,1.5,1247.5,1247.4,1.79962846]
[1672941094573,3.89413802,1247.5,1247.3,1.79962846]
[1672941094993,3.89413802,1247.5,1247.3,4.29962846]
[1672941095199,1.5,1247.5,1247.3,4.29962846]
[1672941095414,1.5,1247.5,1247.3,6.69979701]
[1672941095830,1.5,1247.5,1247.4,4.29962846]
[1672941097835,4.89413802,1247.6,1247.4,4.29962846]
[1672941098042,2.5,1247.6,1247.4,9.90759701]
[1672941098574,4.89413802,1247.7,1247.4,9.90759701]
[1672941098777,7.89140393,1247.7,1247.4,7.50742846]
[1672941099098,5.60193802,1247.6,1247.4,1.79962846]
[1672941099310,2.5,1247.5,1247.3,4.29962846]
[1672941099623,4.89413802,1247.5,1247.3,4.29962846]
[1672941100046,2.5,1247.5,1247.3,4.29962846]
[1672941100666,2.39413802,1247.6,1247.4,5.00742846]
[1672941100880,5.49726591,1247.7,1247.4,5.00742846]
[1672941100881,7.89140393,1247.7,1247.5,2.5]
[1672941101086,2.39413802,1247.6,1247.5,2.5]
[1672941101933,4.89413802,1247.7,1247.5,2.5]
[1672941102143,7.89140393,1247.7,1247.5,2.5]
[1672941102674,4.89413802,1247.7,1247.5,2.5]
[1672941103097,7.89140393,1247.7,1247.5,2.5]
[1672941103617,4.89413802,1247.7,1247.5,2.5]
[1672941103826,7.89140393,1247.7,1247.5,2.5]
[1672941104036,4.89413802,1247.7,1247.5,2.5]
[1672941104882,7.89140393,1247.7,1247.5,2.5]
[1672941106144,4.89413802,1247.7,1247.5,2.5]
[1672941106564,7.89140393,1247.7,1247.5,2.5]
[1672941106879,7.89140393,1247.7,1247.4,5.00742846]
[1672941107192,2.39413802,1247.6,1247.5,2.5]
[1672941109711,2.39413802,1247.6,1247.4,4.29962846]
[1672941115806,2.5,1247.5,1247.4,4.29962846]
[1672941117593,2.5,1247.5,1247.4,1.79962846]
[1672941118438,4.89413802,1247.5,1247.4,1.79962846]
[1672941120329,2.39413802,1247.5,1247.4,1.79962846]
[1672941120854,8.59920393,1247.6,1247.4,1.79962846]
[1672941121067,8.59920393,1247.6,1247.5,1.79962846]
[1672941121068,2.39413802,1247.6,1247.5,1.79962846]
[1672941121277,2.39413802,1247.6,1247.5,4.29962846]
[1672941121492,2.39413802,1247.6,1247.5,2.5]
[1672941122327,2.39413802,1247.6,1247.4,1.79962846]
[1672941123055,4.89413802,1247.5,1247.4,1.79962846]
[1672941128417,2.39413802,1247.5,1247.4,1.79962846]
[1672941128735,2.39413802,1247.5,1247.4,4.20144386]
[1672941128946,2.39413802,1247.5,1247.4,2.40016855]
[1672941129775,2.39413802,1247.5,1247.4,3.82104886]
[1672941130518,2.39413802,1247.5,1247.4,2.40016855]
[1672941130724,4.89413802,1247.5,1247.4,3.82106972]
[1672941130939,5.49726591,1247.5,1247.4,4.20287459]
[1672941131149,5.49726591,1247.5,1247.4,1.80270604]
[1672941131468,5.7078,1247.5,1247.3,4.20287459]
[1672941131679,2.9970066,1247.4,1247.3,1.80270604]
[1672941132312,2.9970066,1247.4,1247.3,4.20287459]
[1672941132524,2.9970066,1247.4,1247.3,1.80270604]
[1672941133359,2.39681665,1247.4,1247.3,4.20287459]
[1672941133677,2.39681665,1247.4,1247.3,3.82123024]
[1672941134097,4.89681665,1247.5,1247.3,7.63228448]
[1672941134415,2.39681665,1247.5,1247.4,4.90255972]
[1672941134937,2.39681665,1247.5,1247.4,6.32345445]
[1672941136518,2.39681665,1247.5,1247.4,4.90255972]
[1672941136722,2.39681665,1247.5,1247.4,6.32345966]
[1672941136933,2.39681665,1247.5,1247.4,9.53125966]
[1672941137247,2.39681665,1247.5,1247.4,9.53125881]
[1672941139668,2.39681665,1247.5,1247.4,6.32345881]
[1672941139987,2.39681665,1247.5,1247.4,9.53125881]
[1672941142185,2.39681665,1247.5,1247.4,12.5346816]
[1672941142817,2.39681665,1247.5,1247.4,9.53125881]
[1672941143136,2.39681665,1247.5,1247.4,12.5346816]
[1672941143659,5.39382325,1247.6,1247.4,10.13212188]
[1672941143859,2.9970066,1247.6,1247.5,4.30209888]
[1672941144605,2.9970066,1247.6,1247.5,6.70489739]
[1672941145131,2.9970066,1247.6,1247.5,4.30209888]
[1672941152068,2.9970066,1247.6,1247.5,6.70489739]
[1672941154489,2.9970066,1247.6,1247.5,4.20489739]
[1672941154703,2.9970066,1247.6,1247.5,1.80209888]
[1672941156801,6.10034476,1247.7,1247.5,1.80209888]
[1672941158063,2.9964487,1247.6,1247.5,1.80209888]
[1672941163004,2.9964487,1247.6,1247.5,1.7973658]
[1672941163847,9.30814476,1247.7,1247.4,4.90279851]
[1672941164056,2.99486784,1247.5,1247.4,4.90279851]
[1672941164267,2.99486784,1247.5,1247.4,2.5]
[1672941167524,2.99486784,1247.5,1247.3,8.11059851]
[1672941167735,2.39580176,1247.4,1247.3,8.11059851]
[1672941167940,2.39580176,1247.4,1247.3,9.53159729]
[1672941170780,2.39580176,1247.4,1247.3,6.32379729]
[1672941175412,4.19278014,1247.4,1247.3,9.32722008]
[1672941175620,4.19278014,1247.4,1247.3,6.92442157]
[1672941175827,2.99486784,1247.4,1247.3,2.5]
[1672941176040,2.39583953,1247.4,1247.3,6.32411626]
[1672941176248,2.39583953,1247.4,1247.3,4.90308576]
[1672941176466,2.39583953,1247.4,1247.3,6.32411335]
[1672941178029,2.39583953,1247.4,1247.3,3.82411335]
[1672941178245,2.39583953,1247.4,1247.3,2.40308576]
[1672941180770,2.39583953,1247.4,1247.3,3.82407892]
[1672941180981,1.7964643,1247.4,1247.3,6.82750171]
[1672941181187,1.7964643,1247.4,1247.3,4.42441595]
[1672941181502,1.7964643,1247.4,1247.3,6.82698814]
[1672941181927,4.19230383,1247.4,1247.3,3.82356535]
[1672941182133,2.39583953,1247.4,1247.3,3.82356535]
[1672941183498,1.79633795,1247.4,1247.3,6.82698814]
[1672941183703,4.29633795,1247.4,1247.3,6.82698814]
[1672941183921,1.79633795,1247.4,1247.3,6.82698814]
[1672941184236,4.19217748,1247.4,1247.3,3.82356535]
[1672941186446,1.79633795,1247.4,1247.3,6.82698814]
[1672941186860,4.19217748,1247.4,1247.3,3.82356535]
[1672941187495,2.39583953,1247.4,1247.3,3.82356535]
[1672941188647,4.19195661,1247.4,1247.3,6.82698814]
[1672941188854,1.79611708,1247.4,1247.3,4.42441595]
[1672941192962,1.79611708,1247.4,1247.3,7.63221595]
[1672941193600,4.19195661,1247.4,1247.3,7.63221595]
[1672941194535,2.39583953,1247.4,1247.3,7.63221595]
[1672941195066,4.19246287,1247.4,1247.3,7.63221595]
[1672941195801,4.19246287,1247.4,1247.3,4.42441595]
[1672941196008,4.19246287,1247.4,1247.3,7.63221595]
[1672941196640,4.19246287,1247.4,1247.3,4.42441595]
[1672941196847,2.39583953,1247.4,1247.3,7.63221595]
[1672941198219,2.99486784,1247.4,1247.3,7.03310489]
[1672941198534,2.99486784,1247.4,1247.3,3.2078]
[1672941198744,5.49486784,1247.4,1247.3,3.2078]
[1672941198957,5.49486784,1247.4,1247.3,5.61211173]
[1672941199683,5.49486784,1247.4,1247.2,4.90431173]
[1672941199899,2.39507393,1247.3,1247.2,9.3288498]
[1672941200215,4.89507393,1247.3,1247.2,6.32542701]
[1672941200414,2.39507393,1247.3,1247.2,6.92453807]
[1672941201476,2.39507393,1247.3,1247.2,9.32857248]
[1672941205469,4.19103938,1247.3,1247.2,9.32857248]
[1672941205677,1.79596545,1247.3,1247.2,6.92453807]
[1672941207260,1.79596545,1247.3,1247.2,10.13233807]
[1672941211783,1.79596545,1247.3,1247.2,7.12891528]
[1672941212303,4.19103938,1247.4,1247.2,7.12891528]
[1672941212514,4.19103938,1247.4,1247.3,4.42533298]
[1672941212730,2.39507393,1247.4,1247.3,9.32873923]
[1672941213036,2.39507393,1247.4,1247.3,4.90340625]
[1672941213037,5.38959098,1247.4,1247.3,4.90340625]
[1672941213250,2.39472314,1247.4,1247.3,6.32442847]
[1672941213870,4.89472314,1247.4,1247.3,7.74546168]
[1672941214086,4.89472314,1247.4,1247.3,6.32442847]
[1672941214506,2.39472314,1247.4,1247.3,6.32442847]
[1672941214724,2.39472314,1247.4,1247.3,7.74546202]
[1672941215037,2.39472314,1247.4,1247.3,10.95325762]
[1672941215878,2.39472314,1247.4,1247.3,13.95747532]
[1672941217348,2.39472314,1247.4,1247.3,10.95325762]
[1672941217558,2.39472314,1247.4,1247.3,13.95747532]
[1672941218609,2.39472314,1247.4,1247.3,10.95325762]
[1672941219133,2.39472314,1247.4,1247.3,9.53222847]
[1672941219336,5.38959098,1247.4,1247.3,9.53222847]
[1672941219765,5.38959098,1247.4,1247.3,6.32442847]
[1672941220710,2.99486784,1247.4,1247.3,6.32442847]
[1672941220921,5.38932006,1247.4,1247.3,6.32442847]
[1672941221129,2.39445222,1247.4,1247.3,6.32442847]
[1672941221340,5.49486784,1247.4,1247.3,6.32442847]
[1672941221871,5.49486784,1247.4,1247.3,3.82442847]
[1672941222067,5.49486784,1247.4,1247.3,1.42102222]
[1672941223023,5.49486784,1247.4,1247.3,4.42523885]
[1672941229436,5.49486784,1247.4,1247.3,4.42223885]
[1672941230595,2.99486784,1247.4,1247.3,4.42223885]
[1672941235015,2.99486784,1247.4,1247.3,3.22055033]
[1672941235953,5.38856787,1247.4,1247.3,3.22055033]
[1672941236377,2.99486784,1247.4,1247.3,3.22055033]
[1672941240689,2.3938333,1247.4,1247.3,7.02922847]
[1672941241003,2.3938333,1247.4,1247.3,8.45022879]
[1672941241218,4.18930577,1247.4,1247.3,13.95444649]
[1672941241428,4.18930577,1247.4,1247.3,10.95022879]
[1672941241852,2.3938333,1247.4,1247.3,10.95022879]
[1672941242374,1.79547293,1247.4,1247.3,11.55104024]
[1672941242593,1.79547293,1247.4,1247.3,13.95370937]
[1672941242791,1.79547293,1247.4,1247.3,11.55104024]
[1672941243311,1.79547293,1247.4,1247.3,13.95374719]
[1672941243526,4.18930623,1247.4,1247.3,13.95374719]
[1672941243735,4.18930623,1247.4,1247.3,10.74594719]
[1672941243947,4.18930623,1247.4,1247.3,13.95374719]
[1672941244259,1.79547293,1247.4,1247.3,13.95374719]
[1672941244793,4.18930623,1247.4,1247.3,10.94952949]
[1672941245947,1.79547293,1247.4,1247.3,13.95374719]
[1672941246266,1.79547293,1247.4,1247.3,10.94952949]
[1672941248473,1.79547293,1247.4,1247.3,13.95374719]
[1672941248781,1.79547293,1247.4,1247.3,10.94952949]
[1672941249203,1.79547293,1247.4,1247.3,13.95374719]
[1672941250041,1.79547293,1247.4,1247.3,11.55104024]
[1672941252568,1.79547293,1247.4,1247.3,13.95289756]
[1672941255192,1.79547293,1247.4,1247.3,11.55104024]
[1672941257075,1.79547293,1247.4,1247.3,10.74469212]
[1672941257393,1.79547293,1247.4,1247.3,11.55104024]
[1672941257607,2.3938333,1247.5,1247.4,2.5]
[1672941257819,2.3938333,1247.5,1247.4,6.702508]
[1672941258024,4.18808174,1247.5,1247.4,4.90143314]
[1672941258230,4.18808174,1247.5,1247.4,6.70232969]
[1672941258975,2.3938333,1247.5,1247.4,4.30089655]
[1672941259184,2.99486784,1247.5,1247.4,3.70060809]
[1672941259395,5.49486784,1247.5,1247.4,1.20060809]
[1672941259919,2.5,1247.5,1247.3,6.91952686]
[1672941260118,5.38085959,1247.4,1247.3,6.91952686]
[1672941260333,2.98936644,1247.4,1247.3,6.91952686]
[1672941260548,5.38095456,1247.4,1247.3,6.91952686]
[1672941260760,2.98936644,1247.4,1247.3,5.11863031]
[1672941262959,5.38081746,1247.4,1247.3,5.11863031]
[1672941263168,2.98936644,1247.4,1247.3,5.11863031]
[1672941266144,5.38066588,1247.4,1247.3,5.11863031]
[1672941266351,5.38066588,1247.4,1247.3,6.91952686]
[1672941266561,5.37375641,1247.4,1247.3,5.11863031]
[1672941267297,2.98245697,1247.4,1247.3,5.11863031]
[1672941267609,5.3737761,1247.4,1247.3,5.11863031]
[1672941269718,2.98245697,1247.4,1247.3,5.11863031]
[1672941270976,5.3743124,1247.4,1247.3,6.91952686]
[1672941271181,5.37430762,1247.4,1247.3,5.11863031]
[1672941271941,5.37430762,1247.4,1247.3,6.91952686]
[1672941272268,2.98245697,1247.4,1247.3,2.61863031]
[1672941272574,5.37421594,1247.4,1247.3,2.61863031]
[1672941273209,2.98245697,1247.4,1247.3,2.61863031]
[1672941288524,2.98245697,1247.4,1247.3,1.20060809]
[1672941294613,2.98245697,1247.4,1247.3,3.00150464]
[1672941296192,2.98245697,1247.4,1247.3,1.20060809]
[1672941296402,2.98245697,1247.4,1247.3,3.00150464]
[1672941297460,2.98245697,1247.4,1247.3,1.80089655]
[1672941297769,2.98245697,1247.4,1247.3,4.20232969]
[1672941297770,5.37700975,1247.4,1247.3,4.20232969]
[1672941298198,2.98245697,1247.4,1247.3,3.82250126]
[1672941298403,2.98245697,1247.4,1247.3,3.82250199]
[1672941298828,2.98245697,1247.4,1247.3,3.82251593]
[1672941299031,2.98245697,1247.4,1247.3,2.40143314]
[1672941301455,2.98245697,1247.4,1247.3,4.20534697]
[1672941301666,6.10034476,1247.5,1247.3,1.80391383]
[1672941301875,6.10034476,1247.5,1247.4,1.20262418]
[1672941303874,6.10034476,1247.5,1247.4,3.00653801]
[1672941305448,6.10034476,1247.5,1247.4,1.20262418]
[1672941311543,9.30814476,1247.5,1247.4,1.20262418]
[1672941315327,6.80814476,1247.5,1247.4,1.20262418]
[1672941315954,9.30814476,1247.5,1247.4,1.20262418]
[1672941316693,6.80814476,1247.5,1247.4,1.20262418]
[1672941316905,9.30814476,1247.5,1247.4,1.20262418]
[1672941318054,6.80814476,1247.5,1247.4,1.20262418]
[1672941318368,3.60034476,1247.5,1247.4,1.20262418]
[1672941318587,6.10034476,1247.6,1247.4,3.00653801]
[1672941318901,10.29922771,1247.6,1247.4,3.00653801]
[1672941319108,2.5,1247.5,1247.4,3.00653801]
[1672941320262,6.10034476,1247.5,1247.4,1.20262418]
[1672941322155,6.10034476,1247.5,1247.4,3.00653801]
[1672941322891,6.10034476,1247.5,1247.4,1.20262418]
[1672941323102,6.10034476,1247.5,1247.4,3.00653801]
[1672941323306,6.10034476,1247.5,1247.4,1.20262418]
[1672941324046,9.30814476,1247.5,1247.4,1.20262418]
[1672941324568,9.30814476,1247.5,1247.3,3.00653801]
[1672941324779,9.30814476,1247.5,1247.3,1.20262418]
[1672941324987,3.60034476,1247.4,1247.3,1.20262418]
[1672941325302,9.90668295,1247.5,1247.3,3.00653801]
[1672941325303,13.50702771,1247.5,1247.3,3.00653801]
[1672941325510,13.50702771,1247.5,1247.3,1.20262418]
[1672941325725,3.60034476,1247.4,1247.3,1.20262418]
[1672941326666,6.80814476,1247.4,1247.3,1.20262418]
[1672941326880,3.2078,1247.4,1247.3,1.20262418]
[1672941327405,6.80814476,1247.4,1247.3,1.20262418]
[1672941327933,3.2078,1247.4,1247.3,1.20262418]
[1672941328147,2.99438656,1247.4,1247.3,3.00653801]
[1672941328346,2.99438656,1247.4,1247.3,1.80391383]
[1672941329823,6.10034476,1247.5,1247.3,3.00595483]
[1672941331822,6.10034476,1247.5,1247.3,1.202041]
[1672941332243,6.10034476,1247.5,1247.3,3.00595483]
[1672941332763,6.10034476,1247.5,1247.3,1.202041]
[1672941332968,6.10034476,1247.5,1247.3,3.00595483]
[1672941333396,3.2078,1247.4,1247.3,1.202041]
[1672941335594,3.2078,1247.4,1247.3,3.6967633]
[1672941336542,6.10034476,1247.5,1247.3,3.6967633]
[1672941336760,9.30814476,1247.5,1247.3,3.6967633]
[1672941341071,9.30814476,1247.5,1247.3,1.1967633]
[1672941342437,13.50702771,1247.5,1247.3,1.1967633]
[1672941342751,9.30814476,1247.5,1247.3,3.00067713]
[1672941343172,9.30814476,1247.5,1247.3,1.1967633]
[1672941343370,9.30814476,1247.5,1247.3,3.00067713]
[1672941343908,2.99447989,1247.4,1247.3,3.00067713]
[1672941344221,9.30814476,1247.5,1247.3,3.00067713]
[1672941344748,9.30814476,1247.5,1247.4,2.5]
[1672941346114,9.30814476,1247.5,1247.3,1.80391383]
[1672941346318,9.30814476,1247.5,1247.2,6.70534697]
[1672941346531,9.30814476,1247.5,1247.2,4.30391383]
[1672941346532,2.99438342,1247.3,1247.2,4.30391383]
[1672941346742,2.99438342,1247.3,1247.2,6.70534697]
[1672941349573,2.99438342,1247.3,1247.2,4.30391383]
[1672941351041,2.99438342,1247.3,1247.2,6.70534697]
[1672941351570,2.99438342,1247.3,1247.2,4.30391383]
[1672941353255,2.99438342,1247.3,1247.2,6.70534697]
[1672941353888,5.39012141,1247.3,1247.2,4.90143314]
[1672941354733,5.39012141,1247.3,1247.2,6.70435903]
[1672941354945,2.99438342,1247.3,1247.2,6.70435903]
[1672941355679,5.39020297,1247.3,1247.2,4.90143314]
[1672941355886,2.99438342,1247.3,1247.2,4.90143314]
[1672941356207,2.99438342,1247.3,1247.2,6.70445079]
[1672941359992,2.99438342,1247.3,1247.2,4.90143314]
[1672941361029,2.99438342,1247.3,1247.2,6.70474795]
[1672941362400,2.99438342,1247.3,1247.2,6.70495737]
[1672941362607,2.99438342,1247.3,1247.2,4.90143314]